{"text_format":"1","workbook":"xlsx","n_sheets":10,"sheets":["Accueil Produits","Produits","SP","MP","Référentiels","Accueil Menus","Saisie MMR","BD MMR","Menus MMR","Jours Fériés"],"not_rendered":{"charts":0,"images":2,"macros":1,"external_links":1,"defined_names":24,"comments":1,"pivot_tables":0},"unopened":[],"bounds":{"document_bytes":16777216,"sheet_cells":100000,"rows_first":2000,"rows_last":500,"rows_between":2000,"halvings":0,"cell_chars":16384,"cell_head_chars":4096},"cells_cut":0,"cells_raw":0,"read":"whole","date_system":"1900"}

{"sheet":"Accueil Produits","index":0,"n_rows":3,"n_cols":5,"rows_kept":3,"cut":false,"hidden":false,"merged":[]}
[]
[]
[null,null,"Choix Catégorie",null,"Choix Produit"]

{"sheet":"Produits","index":1,"n_rows":146,"n_cols":15,"rows_kept":146,"cut":false,"hidden":false,"merged":[]}
["Intitulé","Numéro création","Code catégorie","Nom catégorie","Code produit","Nom produit","Code jour","Nom jour","Code conditionnement","Nom conditionnement","Code destination","Nom destination","Code à modifier","Nom à modifier","Date création"]
["DMR01-1",1,"CC01","DMR","DMR01","Pomme","CJ05","Lundi à vendredi midis","COCO16","1 sachet de 2 kilogrammes. 1 pomme pour 1 repas","CD02","Menus midi retraite","LCÀM01","Non","2019-08-20"]
["DS01-1",1,"CC02","DS","DS01","Pomme","CJ06","lundi à vendredi soirs","COCO16","1 sachet de 2 kilogrammes. 1 pomme pour 1 repas","CD01","Menus journaliers","LCÀM01","Non","2019-08-20"]
["DWE01-1",1,"CC03","DWE","DWE01","Ananas","CJ10","Samedi et dimanche midis et soirs","COCO30","Unité : 1 pour 4 repas","CD01","Menus journaliers","LCÀM01","Non","2019-08-20"]
["DWE02-2",2,"CC03","DWE","DWE02","Autres fruits","CJ10","Samedi et dimanche midis et soirs","COCO32","Unité : 2 à 4 pour 1 repas","CD01","Menus journaliers","LCÀM01","Non","2019-08-20"]
["DWE03-3",3,"CC03","DWE","DWE03","Avocats","CJ10","Samedi et dimanche midis et soirs","COCO28","Unité : 1 pour 1 repas","CD01","Menus journaliers","LCÀM01","Non","2019-08-20"]
["DWE04-4",4,"CC03","DWE","DWE04","Bananes","CJ10","Samedi et dimanche midis et soirs","COCO28","Unité : 1 pour 1 repas","CD01","Menus journaliers","LCÀM01","Non","2019-08-20"]
["DWE05-5",5,"CC03","DWE","DWE05","Clémentines","CJ10","Samedi et dimanche midis et soirs","COCO32","Unité : 2 à 4 pour 1 repas","CD01","Menus journaliers","LCÀM01","Non","2019-08-20"]
["DWE06-6",6,"CC03","DWE","DWE06","Crème","CJ10","Samedi et dimanche midis et soirs","COCO10","1 pack de 4 pots pour le week-end. 1 pot pour 1 repas","CD01","Menus journaliers","LCÀM01","Non","2019-08-20"]
["DWE07-7",7,"CC03","DWE","DWE07","Dattes","CJ10","Samedi et dimanche midis et soirs","COCO15","1 paquet pour 4 repas","CD01","Menus journaliers","LCÀM01","Non","2019-08-20"]
["DWE08-8",8,"CC03","DWE","DWE08","Figues","CJ10","Samedi et dimanche midis et soirs","COCO15","1 paquet pour 4 repas","CD01","Menus journaliers","LCÀM01","Non","2019-08-20"]
["DWE09-9",9,"CC03","DWE","DWE09","Fromage blanc","CJ10","Samedi et dimanche midis et soirs","COCO10","1 pack de 4 pots pour le week-end. 1 pot pour 1 repas","CD01","Menus journaliers","LCÀM01","Non","2019-08-20"]
["DWE10-10",10,"CC03","DWE","DWE10","Fruits au sirop","CJ10","Samedi et dimanche midis et soirs","COCO05","1 boîte pour 2 repas","CD01","Menus journaliers","LCÀM01","Non","2019-08-20"]
["DWE11-11",11,"CC03","DWE","DWE11","Fruits de saison","CJ10","Samedi et dimanche midis et soirs","COCO32","Unité : 2 à 4 pour 1 repas","CD01","Menus journaliers","LCÀM01","Non","2019-08-20"]
["DWE12-12",12,"CC03","DWE","DWE12","Gâteau de riz","CJ10","Samedi et dimanche midis et soirs","COCO10","1 pack de 4 pots pour le week-end. 1 pot pour 1 repas","CD01","Menus journaliers","LCÀM01","Non","2019-08-20"]
["DWE13-13",13,"CC03","DWE","DWE13","Gâteau de semoule","CJ10","Samedi et dimanche midis et soirs","COCO10","1 pack de 4 pots pour le week-end. 1 pot pour 1 repas","CD01","Menus journaliers","LCÀM01","Non","2019-08-20"]
["DWE14-14",14,"CC03","DWE","DWE14","Gâteaux samedi dimanche","CJ10","Samedi et dimanche midis et soirs","COCO13","1 paquet pour 2 repas","CD01","Menus journaliers","LCÀM01","Non","2019-08-20"]
["DWE15-15",15,"CC03","DWE","DWE15","Mousse au chocolat","CJ10","Samedi et dimanche midis et soirs","COCO10","1 pack de 4 pots pour le week-end. 1 pot pour 1 repas","CD01","Menus journaliers","LCÀM01","Non","2019-08-20"]
["DWE16-16",16,"CC03","DWE","DWE16","Oranges","CJ10","Samedi et dimanche midis et soirs","COCO28","Unité : 1 pour 1 repas","CD01","Menus journaliers","LCÀM01","Non","2019-08-20"]
["DWE17-17",17,"CC03","DWE","DWE17","Petits suisses","CJ10","Samedi et dimanche midis et soirs","COCO11","1 pack de 6 pots. 3 pots pour 1 repas","CD01","Menus journaliers","LCÀM01","Non","2019-08-20"]
["DWE18-18",18,"CC03","DWE","DWE18","Pruneaux","CJ10","Samedi et dimanche midis et soirs","COCO15","1 paquet pour 4 repas","CD01","Menus journaliers","LCÀM01","Non","2019-08-20"]
["DWE19-19",19,"CC03","DWE","DWE19","Riz au lait","CJ10","Samedi et dimanche midis et soirs","COCO10","1 pack de 4 pots pour le week-end. 1 pot pour 1 repas","CD01","Menus journaliers","LCÀM01","Non","2019-08-20"]
["DWE20-20",20,"CC03","DWE","DWE20","Tapioca","CJ10","Samedi et dimanche midis et soirs","COCO23","25 grammes pour 1 repas","CD01","Menus journaliers","LCÀM01","Non","2019-08-20"]
["DWE21-21",21,"CC03","DWE","DWE21","Yaourts","CJ10","Samedi et dimanche midis et soirs","COCO10","1 pack de 4 pots pour le week-end. 1 pot pour 1 repas","CD01","Menus journaliers","LCÀM01","Non","2019-08-20"]
["LMR01-1",1,"CC04","LMR","LMR01","Asperges","CJ05","Lundi à vendredi midis","COCO01","1 bocal ou 1 boîte pour 1 repas","CD02","Menus midi retraite","LCÀM01","Non","2019-08-20"]
["LMR02-2",2,"CC04","LMR","LMR02","Avocat","CJ05","Lundi à vendredi midis","COCO28","Unité : 1 pour 1 repas","CD02","Menus midi retraite","LCÀM01","Non","2019-08-20"]
["LMR03-3",3,"CC04","LMR","LMR03","Carottes","CJ05","Lundi à vendredi midis","COCO33","Unité : 2 pour 1 repas","CD02","Menus midi retraite","LCÀM01","Non","2019-08-20"]
["LMR04-4",4,"CC04","LMR","LMR04","Céleri","CJ05","Lundi à vendredi midis","COCO26","Unité : 1 branche pour 1 repas","CD02","Menus midi retraite","LCÀM01","Non","2019-08-20"]
["LMR05-5",5,"CC04","LMR","LMR05","Champignons","CJ05","Lundi à vendredi midis","COCO04","1 boîte pour 1 repas","CD02","Menus midi retraite","LCÀM01","Non","2019-08-20"]
["LMR06-6",6,"CC04","LMR","LMR06","Concombre","CJ05","Lundi à vendredi midis","COCO28","Unité : 1 pour 1 repas","CD02","Menus midi retraite","LCÀM01","Non","2019-08-20"]
["LMR07-7",7,"CC04","LMR","LMR07","Couscous","CJ05","Lundi à vendredi midis","COCO23","25 grammes pour 1 repas","CD02","Menus midi retraite","LCÀM01","Non","2019-08-20"]
["LMR08-8",8,"CC04","LMR","LMR08","Maïs","CJ05","Lundi à vendredi midis","COCO04","1 boîte pour 1 repas","CD02","Menus midi retraite","LCÀM01","Non","2019-08-20"]
["LMR09-9",9,"CC04","LMR","LMR09","Pâtes à la sauce tomates","CJ05","Lundi à vendredi midis","COCO25","5 cuillères pour 1 repas","CD02","Menus midi retraite","LCÀM01","Non","2019-08-20"]
["LMR10-10",10,"CC04","LMR","LMR10","Pâtes au beurre","CJ05","Lundi à vendredi midis","COCO25","5 cuillères pour 1 repas","CD02","Menus midi retraite","LCÀM01","Non","2019-08-20"]
["LMR11-11",11,"CC04","LMR","LMR11","Poireau","CJ05","Lundi à vendredi midis","COCO28","Unité : 1 pour 1 repas","CD02","Menus midi retraite","LCÀM01","Non","2019-08-20"]
["LMR12-12",12,"CC04","LMR","LMR12","Pomme de terre","CJ05","Lundi à vendredi midis","COCO28","Unité : 1 pour 1 repas","CD02","Menus midi retraite","LCÀM01","Non","2019-08-20"]
["LMR13-13",13,"CC04","LMR","LMR13","Purée","CJ05","Lundi à vendredi midis","COCO23","25 grammes pour 1 repas","CD02","Menus midi retraite","LCÀM01","Non","2019-08-20"]
["LMR14-14",14,"CC04","LMR","LMR14","Radis","CJ05","Lundi à vendredi midis","COCO07","1 botte ou 1 sachet pour 2 repas","CD02","Menus midi retraite","LCÀM01","Non","2019-08-20"]
["LMR15-15",15,"CC04","LMR","LMR15","Riz","CJ05","Lundi à vendredi midis","COCO23","25 grammes pour 1 repas","CD02","Menus midi retraite","LCÀM01","Non","2019-08-20"]
["LMR16-16",16,"CC04","LMR","LMR16","Salade","CJ05","Lundi à vendredi midis","COCO31","Unité : 1 tête pour 1 repas","CD02","Menus midi retraite","LCÀM01","Non","2019-08-20"]
["LMR17-17",17,"CC04","LMR","LMR17","Tomates","CJ05","Lundi à vendredi midis","COCO33","Unité : 2 pour 1 repas","CD02","Menus midi retraite","LCÀM01","Non","2019-08-20"]
["LSLM01-1",1,"CC05","LSLM","LSLM01","Cassoulet","CJ07","Lundi et mardi soirs","COCO05","1 boîte pour 2 repas","CD01","Menus journaliers","LCÀM01","Non","2019-08-20"]
["LSLM02-2",2,"CC05","LSLM","LSLM02","Choucroute","CJ07","Lundi et mardi soirs","COCO05","1 boîte pour 2 repas","CD01","Menus journaliers","LCÀM01","Non","2019-08-20"]
["LSLM03-3",3,"CC05","LSLM","LSLM03","Chou-fleur","CJ07","Lundi et mardi soirs","COCO29","Unité : 1 pour 2 repas","CD01","Menus journaliers","LCÀM01","Non","2019-08-20"]
["LSLM04-4",4,"CC05","LSLM","LSLM04","Choux de Bruxelles","CJ07","Lundi et mardi soirs","COCO05","1 boîte pour 2 repas","CD01","Menus journaliers","LCÀM01","Non","2019-08-20"]
["LSLM05-5",5,"CC05","LSLM","LSLM05","Couscous","CJ07","Lundi et mardi soirs","COCO23","25 grammes pour 1 repas","CD01","Menus journaliers","LCÀM01","Non","2019-08-20"]
["LSLM06-6",6,"CC05","LSLM","LSLM06","Endives","CJ07","Lundi et mardi soirs","COCO05","1 boîte pour 2 repas","CD01","Menus journaliers","LCÀM01","Non","2019-08-20"]
["LSLM07-7",7,"CC05","LSLM","LSLM07","Haricots verts","CJ07","Lundi et mardi soirs","COCO05","1 boîte pour 2 repas","CD01","Menus journaliers","LCÀM01","Non","2019-08-20"]
["LSLM08-8",8,"CC05","LSLM","LSLM08","Maïs","CJ07","Lundi et mardi soirs","COCO05","1 boîte pour 2 repas","CD01","Menus journaliers","LCÀM01","Non","2019-08-20"]
["LSLM09-9",9,"CC05","LSLM","LSLM09","Paella","CJ07","Lundi et mardi soirs","COCO13","1 paquet pour 2 repas","CD01","Menus journaliers","LCÀM01","Non","2019-08-20"]
["LSLM10-10",10,"CC05","LSLM","LSLM10","Poireau","CJ07","Lundi et mardi soirs","COCO28","Unité : 1 pour 1 repas","CD01","Menus journaliers","LCÀM01","Non","2019-08-20"]
["LSLM11-11",11,"CC05","LSLM","LSLM11","Pomme de terre","CJ07","Lundi et mardi soirs","COCO28","Unité : 1 pour 1 repas","CD01","Menus journaliers","LCÀM01","Non","2019-08-20"]
["LSLM12-12",12,"CC05","LSLM","LSLM12","Purée","CJ07","Lundi et mardi soirs","COCO23","25 grammes pour 1 repas","CD01","Menus journaliers","LCÀM01","Non","2019-08-20"]
["LSLM13-13",13,"CC05","LSLM","LSLM13","Quenelles","CJ07","Lundi et mardi soirs","COCO05","1 boîte pour 2 repas","CD01","Menus journaliers","LCÀM01","Non","2019-08-20"]
["LSLM14-14",14,"CC05","LSLM","LSLM14","Riz","CJ07","Lundi et mardi soirs","COCO23","25 grammes pour 1 repas","CD01","Menus journaliers","LCÀM01","Non","2019-08-20"]
["LSMJ01-1",1,"CC06","LSMJ","LSMJ01","Macédoine de légumes","CJ08","Mercredi et jeudi soirs","COCO05","1 boîte pour 2 repas","CD01","Menus journaliers","LCÀM01","Non","2019-08-20"]
["LSMJ02-2",2,"CC06","LSMJ","LSMJ02","Petits pois","CJ08","Mercredi et jeudi soirs","COCO05","1 boîte pour 2 repas","CD01","Menus journaliers","LCÀM01","Non","2019-08-20"]
["LSMJ03-3",3,"CC06","LSMJ","LSMJ03","Petits pois et jeunes carottes","CJ08","Mercredi et jeudi soirs","COCO05","1 boîte pour 2 repas","CD01","Menus journaliers","LCÀM01","Non","2019-08-20"]
["LSMJ04-4",4,"CC06","LSMJ","LSMJ04","Ratatouille","CJ08","Mercredi et jeudi soirs","COCO05","1 boîte pour 2 repas","CD01","Menus journaliers","LCÀM01","Non","2019-08-20"]
["LSMJ05-5",5,"CC06","LSMJ","LSMJ05","Raviolis","CJ08","Mercredi et jeudi soirs","COCO05","1 boîte pour 2 repas","CD01","Menus journaliers","LCÀM01","Non","2019-08-20"]
["LSMJ06-6",6,"CC06","LSMJ","LSMJ06","Tomates pelées","CJ08","Mercredi et jeudi soirs","COCO05","1 boîte pour 2 repas","CD01","Menus journaliers","LCÀM01","Non","2019-08-20"]
["LSV01-1",1,"CC07","LSV","LSV01","Asperges","CJ12","Vendredi soir","COCO01","1 bocal ou 1 boîte pour 1 repas","CD01","Menus journaliers","LCÀM01","Non","2019-08-20"]
["LSV02-2",2,"CC07","LSV","LSV02","Avocat","CJ12","Vendredi soir","COCO28","Unité : 1 pour 1 repas","CD01","Menus journaliers","LCÀM01","Non","2019-08-20"]
["LSV03-3",3,"CC07","LSV","LSV03","Betterave rouge","CJ12","Vendredi soir","COCO16","1 paquet pour 5 repas (betteraves rouges)","CD01","Menus journaliers","LCÀM01","Non","2019-08-20"]
["LSV04-4",4,"CC07","LSV","LSV04","Carottes","CJ12","Vendredi soir","COCO34","Unité : 2 pour 1 repas","CD01","Menus journaliers","LCÀM01","Non","2019-08-20"]
["LSV05-5",5,"CC07","LSV","LSV05","Céleri","CJ12","Vendredi soir","COCO27","Unité : 1 branche pour 1 repas","CD01","Menus journaliers","LCÀM01","Non","2019-08-20"]
["LSV06-6",6,"CC07","LSV","LSV06","Champignons","CJ12","Vendredi soir","COCO04","1 boîte pour 1 repas","CD01","Menus journaliers","LCÀM01","Non","2019-08-20"]
["LSV07-7",7,"CC07","LSV","LSV07","Concombre","CJ12","Vendredi soir","COCO29","Unité : 1 pour 1 repas","CD01","Menus journaliers","LCÀM01","Non","2019-08-20"]
["LSV08-8",8,"CC07","LSV","LSV08","Radis","CJ12","Vendredi soir","COCO06","1 botte ou 1 sachet pour 1 repas","CD01","Menus journaliers","LCÀM01","Non","2019-08-20"]
["LSV09-9",9,"CC07","LSV","LSV09","Salade","CJ12","Vendredi soir","COCO32","Unité : 1 tête pour 1 repas","CD01","Menus journaliers","LCÀM01","Non","2019-08-20"]
["LSV10-10",10,"CC07","LSV","LSV10","Salsifis","CJ12","Vendredi soir","COCO04","1 boîte pour 1 repas","CD01","Menus journaliers","LCÀM01","Non","2019-08-20"]
["LSV11-11",11,"CC07","LSV","LSV11","Tomates ","CJ12","Vendredi soir","COCO34","Unité : 2 pour 1 repas","CD01","Menus journaliers","LCÀM01","Non","2019-08-20"]
["LWED01-1",1,"CC08","LWED","LWED01","Asperges","CJ03","Dimanche soir","COCO04","1 boîte pour 1 repas","CD01","Menus journaliers","LCÀM01","Non","2019-08-20"]
["LWED02-2",2,"CC08","LWED","LWED02","Chips","CJ02","Dimanche midi et soir","COCO18","1 sachet pour 2 repas","CD01","Menus journaliers","LCÀM01","Non","2019-08-20"]
["LWED03-3",3,"CC08","LWED","LWED03","Frites","CJ01","Dimanche midi","COCO23","20 frites pour 1 repas","CD01","Menus journaliers","LCÀM01","Non","2019-08-20"]
["LWED04-4",4,"CC08","LWED","LWED04","Haricots verts","CJ02","Dimanche midi et soir","COCO05","1 boîte pour 2 repas","CD01","Menus journaliers","LCÀM01","Non","2019-08-20"]
["LWES01-1",1,"CC09","LWES","LWES01","Pâtes à la sauce tomates","CJ11","Samedi midi et soir","COCO26","5 cuillères pour 1 repas","CD01","Menus journaliers","LCÀM01","Non","2019-08-20"]
["LWES02-2",2,"CC09","LWES","LWES02","Pâtes au beurre","CJ11","Samedi midi et soir","COCO26","5 cuillères pour 1 repas","CD01","Menus journaliers","LCÀM01","Non","2019-08-20"]
["LWES03-3",3,"CC09","LWES","LWES03","Pâtes au fromage râpé","CJ11","Samedi midi et soir","COCO26","5 cuillères pour 1 repas","CD01","Menus journaliers","LCÀM01","Non","2019-08-20"]
["O01-1",1,"CC10","OBSE","O01","Armistice du 11 novembre 1918",null,"-",null,"-",null,"-","LCÀM01","Non","2019-08-21"]
["O02-2",2,"CC10","OBSE","O02","Ascension",null,"-",null,"-",null,"-","LCÀM01","Non","2019-08-21"]
["O03-3",3,"CC10","OBSE","O03","Assomption",null,"-",null,"-",null,"-","LCÀM01","Non","2019-08-21"]
["O04-4",4,"CC10","OBSE","O04","Fête du travail",null,"-",null,"-",null,"-","LCÀM01","Non","2019-08-21"]
["O05-5",5,"CC10","OBSE","O05","Fête nationale",null,"-",null,"-",null,"-","LCÀM01","Non","2019-08-21"]
["O06-6",6,"CC10","OBSE","O06","Jour de l'an",null,"-",null,"-",null,"-","LCÀM01","Non","2019-08-21"]
["O07-7",7,"CC10","OBSE","O07","Lundi de Pâques",null,"-",null,"-",null,"-","LCÀM01","Non","2019-08-21"]
["O08-8",8,"CC10","OBSE","O08","Lundi de Pentecôte",null,"-",null,"-",null,"-","LCÀM01","Non","2019-08-21"]
["O09-9",9,"CC10","OBSE","O09","Noël",null,"-",null,"-",null,"-","LCÀM01","Non","2019-08-21"]
["O10-10",10,"CC10","OBSE","O10","Pâques",null,"-",null,"-",null,"-","LCÀM01","Non","2019-08-21"]
["O11-11",11,"CC10","OBSE","O11","Pentecôte",null,"-",null,"-",null,"-","LCÀM01","Non","2019-08-21"]
["O12-12",12,"CC10","OBSE","O12","Toussaint",null,"-",null,"-",null,"-","LCÀM01","Non","2019-08-21"]
["O13-13",13,"CC10","OBSE","O13","Victoire du 08 mai 1945",null,"-",null,"-",null,"-","LCÀM01","Non","2019-08-21"]
["PC01-1",1,"CC11","PC","PC01","Janvier",null,"-",null,"-",null,"-","LCÀM01","Non","2019-08-21"]
["PC02-2",2,"CC11","PC","PC02","Février",null,"-",null,"-",null,"-","LCÀM01","Non","2019-08-21"]
["PC03-3",3,"CC11","PC","PC03","Mars",null,"-",null,"-",null,"-","LCÀM01","Non","2019-08-21"]
["PC04-4",4,"CC11","PC","PC04","Avril",null,"-",null,"-",null,"-","LCÀM01","Non","2019-08-21"]
["PC05-5",5,"CC11","PC","PC05","Mai",null,"-",null,"-",null,"-","LCÀM01","Non","2019-08-21"]
["PC06-6",6,"CC11","PC","PC06","Juin",null,"-",null,"-",null,"-","LCÀM01","Non","2019-08-21"]
["PC07-7",7,"CC11","PC","PC07","Juillet",null,"-",null,"-",null,"-","LCÀM01","Non","2019-08-21"]
["PC08-8",8,"CC11","PC","PC08","Août",null,"-",null,"-",null,"-","LCÀM01","Non","2019-08-21"]
["PC09-9",9,"CC11","PC","PC09","Septembre",null,"-",null,"-",null,"-","LCÀM01","Non","2019-08-21"]
["PC10-10",10,"CC11","PC","PC10","Octobre",null,"-",null,"-",null,"-","LCÀM01","Non","2019-08-21"]
["PC11-11",11,"CC11","PC","PC11","Novembre",null,"-",null,"-",null,"-","LCÀM01","Non","2019-08-21"]
["PC12-12",12,"CC11","PC","PC12","Décembre",null,"-",null,"-",null,"-","LCÀM01","Non","2019-08-21"]
["PVWE01-1",1,"CC12","PVWE","PVWE01","Viande weekend premier semestre",null,"-",null,"-",null,"-","LCÀM01","Non","2019-08-21"]
["PVWE02-2",2,"CC12","PVWE","PVWE02","Viande weekend deuxième semestre",null,"-",null,"-",null,"-","LCÀM01","Non","2019-08-21"]
["VMR01-1",1,"CC13","VMR","VMR01","Rôti d'agneau","CJ05","Lundi à vendredi midis","COCO09","1 morceau de 500 grammes pour 5 repas","CD02","Menus midi retraite","LCÀM01","Non","2019-08-21"]
["VMR02-2",2,"CC13","VMR","VMR02","Rôti de bœuf","CJ05","Lundi à vendredi midis","COCO09","1 morceau de 500 grammes pour 5 repas","CD02","Menus midi retraite","LCÀM01","Non","2019-08-21"]
["VMR03-3",3,"CC13","VMR","VMR03","Rôti de cheval","CJ05","Lundi à vendredi midis","COCO09","1 morceau de 500 grammes pour 5 repas","CD02","Menus midi retraite","LCÀM01","Non","2019-08-21"]
["VMR04-4",4,"CC13","VMR","VMR04","Rôti de porc","CJ05","Lundi à vendredi midis","COCO09","1 morceau de 500 grammes pour 5 repas","CD02","Menus midi retraite","LCÀM01","Non","2019-08-21"]
["VMR05-5",5,"CC13","VMR","VMR05","Rôti de veau","CJ05","Lundi à vendredi midis","COCO09","1 morceau de 500 grammes pour 5 repas","CD02","Menus midi retraite","LCÀM01","Non","2019-08-21"]
["VS01-1",1,"CC14","VS","VS01","Bifteck haché de bœuf","CJ04","Lundi à dimanche soirs","COCO13","1 paquet pour 2 repas","CD01","Menus journaliers","LCÀM01","Non","2019-08-21"]
["VS02-2",2,"CC14","VS","VS02","Bifteck haché de cheval","CJ04","Lundi à dimanche soirs","COCO13","1 paquet pour 2 repas","CD01","Menus journaliers","LCÀM01","Non","2019-08-21"]
["VS03-3",3,"CC14","VS","VS03","Bifteck haché de veau","CJ04","Lundi à dimanche soirs","COCO13","1 paquet pour 2 repas","CD01","Menus journaliers","LCÀM01","Non","2019-08-21"]
["VS04-4",4,"CC14","VS","VS04","Bouchée à la reine","CJ04","Lundi à dimanche soirs","COCO05","1 boîte pour 2 repas","CD01","Menus journaliers","LCÀM01","Non","2019-08-21"]
["VS05-5",5,"CC14","VS","VS05","Boudin","CJ04","Lundi à dimanche soirs","COCO13","1 paquet pour 2 repas","CD01","Menus journaliers","LCÀM01","Non","2019-08-21"]
["VS06-6",6,"CC14","VS","VS06","Cervelas","CJ04","Lundi à dimanche soirs","COCO13","1 paquet pour 2 repas","CD01","Menus journaliers","LCÀM01","Non","2019-08-21"]
["VS07-7",7,"CC14","VS","VS07","Cœur","CJ04","Lundi à dimanche soirs","COCO13","1 paquet pour 2 repas","CD01","Menus journaliers","LCÀM01","Non","2019-08-21"]
["VS08-8",8,"CC14","VS","VS08","Croque-monsieur","CJ04","Lundi à dimanche soirs","COCO05","1 boîte pour 2 repas","CD01","Menus journaliers","LCÀM01","Non","2019-08-21"]
["VS09-9",9,"CC14","VS","VS09","Foie","CJ04","Lundi à dimanche soirs","COCO13","1 paquet pour 2 repas","CD01","Menus journaliers","LCÀM01","Non","2019-08-21"]
["VS10-10",10,"CC14","VS","VS10","Fromage de tête","CJ04","Lundi à dimanche soirs","COCO21","1 tranche pour 2 repas","CD01","Menus journaliers","LCÀM01","Non","2019-08-21"]
["VS11-11",11,"CC14","VS","VS11","Jambon","CJ04","Lundi à dimanche soirs","COCO13","1 paquet pour 2 repas","CD01","Menus journaliers","LCÀM01","Non","2019-08-21"]
["VS12-12",12,"CC14","VS","VS12","Jambonneau","CJ04","Lundi à dimanche soirs","COCO13","1 paquet pour 2 repas","CD01","Menus journaliers","LCÀM01","Non","2019-08-21"]
["VS13-13",13,"CC14","VS","VS13","Mortadelle","CJ04","Lundi à dimanche soirs","COCO13","1 paquet pour 2 repas","CD01","Menus journaliers","LCÀM01","Non","2019-08-21"]
["VS14-14",14,"CC14","VS","VS14","Œufs","CJ04","Lundi à dimanche soirs","COCO02","1 boîte de six œufs. 3 œufs pour 1 repas","CD01","Menus journaliers","LCÀM01","Non","2019-08-21"]
["VS15-15",15,"CC14","VS","VS15","Pizza","CJ04","Lundi à dimanche soirs","COCO13","1 paquet pour 2 repas","CD01","Menus journaliers","LCÀM01","Non","2019-08-21"]
["VS16-16",16,"CC14","VS","VS16","Poisson","CJ04","Lundi à dimanche soirs","COCO29","Unité : 1 pour 1 repas","CD01","Menus journaliers","LCÀM01","Non","2019-08-21"]
["VS17-17",17,"CC14","VS","VS17","Quiche lorraine","CJ04","Lundi à dimanche soirs","COCO05","1 boîte pour 2 repas","CD01","Menus journaliers","LCÀM01","Non","2019-08-21"]
["VS18-18",18,"CC14","VS","VS18","Roulade à la pistache","CJ04","Lundi à dimanche soirs","COCO25","3 tranches pour 1 repas","CD01","Menus journaliers","LCÀM01","Non","2019-08-21"]
["VS19-19",19,"CC14","VS","VS19","Roulé au fromage","CJ04","Lundi à dimanche soirs","COCO05","1 boîte pour 2 repas","CD01","Menus journaliers","LCÀM01","Non","2019-08-21"]
["VS20-20",20,"CC14","VS","VS20","Salami","CJ04","Lundi à dimanche soirs","COCO13","1 paquet pour 2 repas","CD01","Menus journaliers","LCÀM01","Non","2019-08-21"]
["VS21-21",21,"CC14","VS","VS21","Saucisses","CJ04","Lundi à dimanche soirs","COCO14","1 paquet pour 2 repas. 1 ou 2 saucisses pour 1 repas","CD01","Menus journaliers","LCÀM01","Non","2019-08-21"]
["VS22-22",22,"CC14","VS","VS22","Saucisson","CJ04","Lundi à dimanche soirs","COCO08","1 morceau de 400 grammes (Leclerc) pour 3 repas","CD01","Menus journaliers","LCÀM01","Non","2019-08-21"]
["VS23-23",23,"CC14","VS","VS23","Tête persillée","CJ04","Lundi à dimanche soirs","COCO21","1 tranche pour 2 repas","CD01","Menus journaliers","LCÀM01","Non","2019-08-21"]
["VS24-24",24,"CC14","VS","VS24","Tête roulée","CJ04","Lundi à dimanche soirs","COCO21","1 tranche pour 2 repas","CD01","Menus journaliers","LCÀM01","Non","2019-08-21"]
["VS25-25",25,"CC14","VS","VS25","Thon","CJ04","Lundi à dimanche soirs","COCO04","1 boîte pour 1 repas","CD01","Menus journaliers","LCÀM01","Non","2019-08-21"]
["VS26-26",26,"CC14","VS","VS26","Viande cassoulet","CJ07","Lundi et mardi soirs","COCO05","1 boîte pour 2 repas","CD01","Menus journaliers","LCÀM01","Non","2019-08-21"]
["VS27-27",27,"CC14","VS","VS27","Viande choucroute","CJ07","Lundi et mardi soirs","COCO05","1 boîte pour 2 repas","CD01","Menus journaliers","LCÀM01","Non","2019-08-21"]
["VS28-28",28,"CC14","VS","VS28","Viande paella","CJ07","Lundi et mardi soirs","COCO05","1 boîte pour 2 repas","CD01","Menus journaliers","LCÀM01","Non","2019-08-21"]
["VWE01-1",1,"CC15","VWE","VWE01","Agneau","CJ09","Samedi et dimanche midis","COCO20","1 tranche pour 1 repas","CD03","Menus viandes weekend","LCÀM01","Non","2019-08-21"]
["VWE02-2",2,"CC15","VWE","VWE02","Bœuf","CJ09","Samedi et dimanche midis","COCO20","1 tranche pour 1 repas","CD03","Menus viandes weekend","LCÀM01","Non","2019-08-21"]
["VWE03-3",3,"CC15","VWE","VWE03","Cheval","CJ09","Samedi et dimanche midis","COCO20","1 tranche pour 1 repas","CD03","Menus viandes weekend","LCÀM01","Non","2019-08-21"]
["VWE04-4",4,"CC15","VWE","VWE04","Dinde","CJ09","Samedi et dimanche midis","COCO20","1 tranche pour 1 repas","CD03","Menus viandes weekend","LCÀM01","Non","2019-08-21"]
["VWE05-5",5,"CC15","VWE","VWE05","Poisson","CJ09","Samedi et dimanche midis","COCO29","Unité : 1 pour 1 repas","CD03","Menus viandes weekend","LCÀM01","Non","2019-08-21"]
["VWE06-6",6,"CC15","VWE","VWE06","Porc","CJ09","Samedi et dimanche midis","COCO20","1 tranche pour 1 repas","CD03","Menus viandes weekend","LCÀM01","Non","2019-08-21"]
["VWE07-7",7,"CC15","VWE","VWE07","Veau","CJ09","Samedi et dimanche midis","COCO20","1 tranche pour 1 repas","CD03","Menus viandes weekend","LCÀM01","Non","2019-08-21"]

{"sheet":"SP","index":2,"n_rows":16,"n_cols":2,"rows_kept":16,"cut":false,"hidden":true,"merged":[[0,0,0,1]]}
["Création d'un produit"]
[]
["Numéro création",{"$f":"MAX(IF(TableProduits[Code catégorie]=$B$4,TableProduits[Numéro création]))+1","v":1}]
["Code catégorie"]
["Nom catégorie",{"$f":"IFERROR(INDEX(Nom_catégorie,MATCH($B$4,Code_catégorie,0)),\"-\")","v":"-"}]
["Code produit"]
["Nom produit",{"$f":"IFERROR(INDEX(Nom_produit,MATCH($B$6,Code_produit,0)),\"-\")","v":"-"}]
["Code jour"]
["Nom jour",{"$f":"IFERROR(INDEX(Nom_jour,MATCH($B$8,Code_jour,0)),\"-\")","v":"-"}]
["Code conditionnement"]
["Nom conditionnement",{"$f":"IFERROR(INDEX(Nom_conditionnement,MATCH($B$10,Code_conditionnement,0)),\"-\")","v":"-"}]
["Code destination"]
["Nom destination",{"$f":"IFERROR(INDEX(Nom_destination,MATCH($B$12,Code_destination,0)),\"-\")","v":"-"}]
["Code à modifier","LCÀM02"]
["Nom à modifier",{"$f":"IFERROR(INDEX(Nom_à_modifier,MATCH($B$14,Code_à_modifier,0)),\"-\")","v":"Oui"}]
["Date création",{"$f":"TODAY()","v":"2019-08-28"}]

{"sheet":"MP","index":3,"n_rows":16,"n_cols":2,"rows_kept":16,"cut":false,"hidden":true,"merged":[[0,0,0,1]]}
["Modification d'un produit"]
[]
["Numéro création",3]
["Code catégorie","CC04"]
["Nom catégorie","LMR"]
["Code produit","LMR03"]
["Nom produit","Carottes"]
["Code jour"]
["Nom jour","-"]
["Code conditionnement"]
["Nom conditionnement","-"]
["Code destination"]
["Nom destination","-"]
["Code à modifier"]
["Nom à modifier","-"]
["Date création","2019-08-20"]

{"sheet":"Référentiels","index":4,"n_rows":146,"n_cols":27,"rows_kept":146,"cut":false,"hidden":true,"merged":[]}
["Code catégorie","Nom catégorie","Code produit","Nom produit","Code jour","Nom jour","Code conditionnement","Nom conditionnement","Code destination","Nom destination","Code à modifier","Nom à modifier",null,"Code destination","Nom destination",null,"Code catégorie","Nom catégorie",null,"Code LMR","Nom LMR",null,"Code VMR","Nom VMR",null,"Code DMR","Nom DMR"]
["CC01","DMR","DMR01","Pomme","CJ01","Dimanche midi","COCO01","1 bocal ou 1 boîte pour 1 repas","CD01","Menus journaliers","LCÀM01","Non",null,"CD01","Menus journaliers",null,"CC01","DMR",null,"LMR01","Asperges",null,"VMR01","Rôti d'agneau",null,"DMR01","Pomme"]
["CC02","DS","DS01","Pomme","CJ02","Dimanche midi et soir","COCO02","1 boîte de six œufs. 3 œufs pour 1 repas","CD02","Menus midi retraite","LCÀM02","Oui",null,"CD02","Menus midi retraite",null,"CC02","DS",null,"LMR02","Avocat",null,"VMR02","Rôti de bœuf"]
["CC03","DWE","DWE01","Ananas","CJ03","Dimanche soir","COCO03","1 boîte ou 1 pot pour 1 repas","CD03","Menus viandes weekend",null,null,null,"CD03","Menus viandes weekend",null,"CC03","DWE",null,"LMR03","Carottes",null,"VMR03","Rôti de cheval"]
["CC04","LMR","DWE02","Autres fruits","CJ04","Lundi à dimanche soirs","COCO04","1 boîte pour 1 repas",null,null,null,null,null,null,null,null,"CC04","LMR",null,"LMR04","Céleri",null,"VMR04","Rôti de porc"]
["CC05","LSLM","DWE03","Avocats","CJ05","Lundi à vendredi midis","COCO05","1 boîte pour 2 repas",null,null,null,null,null,null,null,null,"CC05","LSLM",null,"LMR05","Champignons",null,"VMR05","Rôti de veau"]
["CC06","LSMJ","DWE04","Bananes","CJ06","lundi à vendredi soirs","COCO06","1 botte ou 1 sachet pour 1 repas",null,null,null,null,null,null,null,null,"CC06","LSMJ",null,"LMR06","Concombre"]
["CC07","LSV","DWE05","Clémentines","CJ07","Lundi et mardi soirs","COCO07","1 botte ou 1 sachet pour 2 repas",null,null,null,null,null,null,null,null,"CC07","LSV",null,"LMR07","Couscous"]
["CC08","LWED","DWE06","Crème","CJ08","Mercredi et jeudi soirs","COCO08","1 morceau de 400 grammes (Leclerc) pour 3 repas",null,null,null,null,null,null,null,null,"CC08","LWED",null,"LMR08","Maïs"]
["CC09","LWES","DWE07","Dattes","CJ09","Samedi et dimanche midis","COCO09","1 morceau de 500 grammes pour 5 repas",null,null,null,null,null,null,null,null,"CC09","LWES",null,"LMR09","Pâtes à la sauce tomates"]
["CC10","OBSE","DWE08","Figues","CJ10","Samedi et dimanche midis et soirs","COCO10","1 pack de 4 pots pour le week-end. 1 pot pour 1 repas",null,null,null,null,null,null,null,null,"CC10","OBSE",null,"LMR10","Pâtes au beurre"]
["CC11","PC","DWE09","Fromage blanc","CJ11","Samedi midi et soir","COCO11","1 pack de 6 pots. 3 pots pour 1 repas",null,null,null,null,null,null,null,null,"CC11","PC",null,"LMR11","Poireau"]
["CC12","PVWE","DWE10","Fruits au sirop","CJ12","Vendredi soir","COCO12","1 paquet pour 1 repas",null,null,null,null,null,null,null,null,"CC12","PVWE",null,"LMR12","Pomme de terre"]
["CC13","VMR","DWE11","Fruits de saison",null,null,"COCO13","1 paquet pour 2 repas",null,null,null,null,null,null,null,null,"CC13","VMR",null,"LMR13","Purée"]
["CC14","VS","DWE12","Gâteau de riz",null,null,"COCO14","1 paquet pour 2 repas. 1 ou 2 saucisses pour 1 repas",null,null,null,null,null,null,null,null,"CC14","VS",null,"LMR14","Radis"]
["CC15","VWE","DWE13","Gâteau de semoule",null,null,"COCO15","1 paquet pour 4 repas",null,null,null,null,null,null,null,null,"CC15","VWE",null,"LMR15","Riz"]
[null,null,"DWE14","Gâteaux samedi dimanche",null,null,"COCO16","1 paquet pour 5 repas (betteraves rouges)",null,null,null,null,null,null,null,null,null,null,null,"LMR16","Salade"]
[null,null,"DWE15","Mousse au chocolat",null,null,"COCO17","1 sachet de 2 kilogrammes. 1 pomme pour 1 repas",null,null,null,null,null,null,null,null,null,null,null,"LMR17","Tomates"]
[null,null,"DWE16","Oranges",null,null,"COCO18","1 sachet pour 2 repas",null,null,null,null,null,null,null,null,null,null,null,"LMR18","Patates"]
[null,null,"DWE17","Petits suisses",null,null,"COCO19","1 sachet pour 4 repas"]
[null,null,"DWE18","Pruneaux",null,null,"COCO20","1 tranche pour 1 repas"]
[null,null,"DWE19","Riz au lait",null,null,"COCO21","1 tranche pour 2 repas"]
[null,null,"DWE20","Tapioca",null,null,"COCO22","125 grammes pour 1 repas"]
[null,null,"DWE21","Yaourts",null,null,"COCO23","20 frites pour 1 repas"]
[null,null,"LMR01","Asperges",null,null,"COCO24","25 grammes pour 1 repas"]
[null,null,"LMR02","Avocat",null,null,"COCO25","3 tranches pour 1 repas"]
[null,null,"LMR03","Carottes",null,null,"COCO26","5 cuillères pour 1 repas"]
[null,null,"LMR04","Céleri",null,null,"COCO27","Unité : 1 branche pour 1 repas"]
[null,null,"LMR05","Champignons",null,null,"COCO28","Unité : 1 morceau pour 2 repas"]
[null,null,"LMR06","Concombre",null,null,"COCO29","Unité : 1 pour 1 repas"]
[null,null,"LMR07","Couscous",null,null,"COCO30","Unité : 1 pour 2 repas"]
[null,null,"LMR08","Maïs",null,null,"COCO31","Unité : 1 pour 4 repas"]
[null,null,"LMR09","Pâtes à la sauce tomates",null,null,"COCO32","Unité : 1 tête pour 1 repas"]
[null,null,"LMR10","Pâtes au beurre",null,null,"COCO33","Unité : 2 à 4 pour 1 repas"]
[null,null,"LMR11","Poireau",null,null,"COCO34","Unité : 2 pour 1 repas"]
[null,null,"LMR12","Pomme de terre"]
[null,null,"LMR13","Purée"]
[null,null,"LMR14","Radis"]
[null,null,"LMR15","Riz"]
[null,null,"LMR16","Salade"]
[null,null,"LMR17","Tomates"]
[null,null,"LSLM01","Cassoulet"]
[null,null,"LSLM02","Choucroute"]
[null,null,"LSLM03","Chou-fleur"]
[null,null,"LSLM04","Choux de Bruxelles"]
[null,null,"LSLM05","Couscous"]
[null,null,"LSLM06","Endives"]
[null,null,"LSLM07","Haricots verts"]
[null,null,"LSLM08","Maïs"]
[null,null,"LSLM09","Paella"]
[null,null,"LSLM10","Poireau"]
[null,null,"LSLM11","Pomme de terre"]
[null,null,"LSLM12","Purée"]
[null,null,"LSLM13","Quenelles"]
[null,null,"LSLM14","Riz"]
[null,null,"LSMJ01","Macédoine de légumes"]
[null,null,"LSMJ02","Petits pois"]
[null,null,"LSMJ03","Petits pois et jeunes carottes"]
[null,null,"LSMJ04","Ratatouille"]
[null,null,"LSMJ05","Raviolis"]
[null,null,"LSMJ06","Tomates pelées"]
[null,null,"LSV01","Asperges"]
[null,null,"LSV02","Avocat"]
[null,null,"LSV03","Betterave rouge"]
[null,null,"LSV04","Carottes"]
[null,null,"LSV05","Céleri"]
[null,null,"LSV06","Champignons"]
[null,null,"LSV07","Concombre"]
[null,null,"LSV08","Radis"]
[null,null,"LSV09","Salade"]
[null,null,"LSV10","Salsifis"]
[null,null,"LSV11","Tomates "]
[null,null,"LWED01","Asperges"]
[null,null,"LWED02","Chips"]
[null,null,"LWED03","Frites"]
[null,null,"LWED04","Haricots verts"]
[null,null,"LWES01","Pâtes à la sauce tomates"]
[null,null,"LWES02","Pâtes au beurre"]
[null,null,"LWES03","Pâtes au fromage râpé"]
[null,null,"O01","Armistice du 11 novembre 1918"]
[null,null,"O02","Ascension"]
[null,null,"O03","Assomption"]
[null,null,"O04","Fête du travail"]
[null,null,"O05","Fête nationale"]
[null,null,"O06","Jour de l'an"]
[null,null,"O07","Lundi de Pâques"]
[null,null,"O08","Lundi de Pentecôte"]
[null,null,"O09","Noël"]
[null,null,"O10","Pâques"]
[null,null,"O11","Pentecôte"]
[null,null,"O12","Toussaint"]
[null,null,"O13","Victoire du 08 mai 1945"]
[null,null,"PC01","Janvier"]
[null,null,"PC02","Février"]
[null,null,"PC03","Mars"]
[null,null,"PC04","Avril"]
[null,null,"PC05","Mai"]
[null,null,"PC06","Juin"]
[null,null,"PC07","Juillet"]
[null,null,"PC08","Août"]
[null,null,"PC09","Septembre"]
[null,null,"PC10","Octobre"]
[null,null,"PC11","Novembre"]
[null,null,"PC12","Décembre"]
[null,null,"PVWE01","Viande weekend premier semestre"]
[null,null,"PVWE02","Viande weekend deuxième semestre"]
[null,null,"VMR01","Rôti d'agneau"]
[null,null,"VMR02","Rôti de bœuf"]
[null,null,"VMR03","Rôti de cheval"]
[null,null,"VMR04","Rôti de porc"]
[null,null,"VMR05","Rôti de veau"]
[null,null,"VS01","Bifteck haché de bœuf"]
[null,null,"VS02","Bifteck haché de cheval"]
[null,null,"VS03","Bifteck haché de veau"]
[null,null,"VS04","Bouchée à la reine"]
[null,null,"VS05","Boudin"]
[null,null,"VS06","Cervelas"]
[null,null,"VS07","Cœur"]
[null,null,"VS08","Croque-monsieur"]
[null,null,"VS09","Foie"]
[null,null,"VS10","Fromage de tête"]
[null,null,"VS11","Jambon"]
[null,null,"VS12","Jambonneau"]
[null,null,"VS13","Mortadelle"]
[null,null,"VS14","Œufs"]
[null,null,"VS15","Pizza"]
[null,null,"VS16","Poisson"]
[null,null,"VS17","Quiche lorraine"]
[null,null,"VS18","Roulade à la pistache"]
[null,null,"VS19","Roulé au fromage"]
[null,null,"VS20","Salami"]
[null,null,"VS21","Saucisses"]
[null,null,"VS22","Saucisson"]
[null,null,"VS23","Tête persillée"]
[null,null,"VS24","Tête roulée"]
[null,null,"VS25","Thon"]
[null,null,"VS26","Viande cassoulet"]
[null,null,"VS27","Viande choucroute"]
[null,null,"VS28","Viande paella"]
[null,null,"VWE01","Agneau"]
[null,null,"VWE02","Bœuf"]
[null,null,"VWE03","Cheval"]
[null,null,"VWE04","Dinde"]
[null,null,"VWE05","Poisson"]
[null,null,"VWE06","Porc"]
[null,null,"VWE07","Veau"]

{"sheet":"Accueil Menus","index":5,"n_rows":1,"n_cols":1,"rows_kept":1,"cut":false,"hidden":false,"merged":[]}
["Accueil Menus"]

{"sheet":"Saisie MMR","index":6,"n_rows":21,"n_cols":8,"rows_kept":21,"cut":false,"hidden":false,"merged":[[8,0,8,1],[8,3,8,4],[8,6,8,7]]}
["Création Menu Midi Retraite"]
[]
["Code menu","CD02",null,"Code observation",null,null,"Code à modifier"]
["Nom menu",{"$f":"IFERROR(INDEX(ListeNomsDestination,MATCH(B3,ListeCodesDestination,0)),\"-\")","v":"Menus midi retraite"},null,"Nom observation",{"$f":"IF(COUNTIF(TableJoursFériés[2020],B7)=0,\"\",INDEX(TableJoursFériés[Jours fériés],MATCH(B7,TableJoursFériés[2020],0)))","v":""},null,"Nom à modifier"]
["Intitulé Menu",{"$f":"IF(B6>0,\"MMR\"&\"-\"&TEXT(B6,\"000\"),\"\")","v":"MMR-008"},null,"Code période concernée"]
["Numéro création menu",{"$f":"MAX(TableMMR[Numéro création])+1","v":8},null,"Nom période concernée",{"$f":"TEXT(B7,\"mmmm\")","v":"janvier"}]
["Date du menu","2020-01-09",null,"Date création menu",{"$f":"TODAY()","v":"2019-08-28"}]
[]
["Légume",null,null,"Viande",null,null,"Dessert"]
["Code catégorie","CC04",null,"Code catégorie","CC13",null,"Code catégorie","CC01"]
["Nom catégorie",{"$f":"IFERROR(INDEX(ListeNomscatégorie,MATCH(B10,ListeCodesCatégorie,0)),\"-\")","v":"LMR"},null,"Nom catégorie",{"$f":"IFERROR(INDEX(ListeNomscatégorie,MATCH(E10,ListeCodesCatégorie,0)),\"-\")","v":"VMR"},null,"Nom catégorie",{"$f":"IFERROR(INDEX(ListeNomscatégorie,MATCH(H10,ListeCodesCatégorie,0)),\"-\")","v":"DMR"}]
["Code produit","LMR07",null,"Code produit","VMR02",null,"Code produit","DMR01"]
["Nom produit",{"$f":"IFERROR(INDEX(TableProduits[#Data],MATCH(B$12,TableProduits[Code produit],0),MATCH($A13,TableProduits[#Headers],0)),\"-\")","v":"Couscous"},null,"Nom produit",{"$f":"IFERROR(INDEX(TableProduits[#Data],MATCH(E$12,TableProduits[Code produit],0),MATCH($A13,TableProduits[#Headers],0)),\"-\")","v":"Rôti de bœuf"},null,"Nom produit",{"$f":"IFERROR(INDEX(TableProduits[#Data],MATCH(H$12,TableProduits[Code produit],0),MATCH($A13,TableProduits[#Headers],0)),\"-\")","v":"Pomme"}]
["Code jour",{"$f":"IFERROR(INDEX(TableProduits[#Data],MATCH(B$12,TableProduits[Code produit],0),MATCH($A14,TableProduits[#Headers],0)),\"-\")","v":"CJ05"},null,"Code jour",{"$f":"IFERROR(INDEX(TableProduits[#Data],MATCH(E$12,TableProduits[Code produit],0),MATCH($A14,TableProduits[#Headers],0)),\"-\")","v":"CJ05"},null,"Code jour",{"$f":"IFERROR(INDEX(TableProduits[#Data],MATCH(H$12,TableProduits[Code produit],0),MATCH($A14,TableProduits[#Headers],0)),\"-\")","v":"CJ05"}]
["Nom jour",{"$f":"IFERROR(INDEX(TableProduits[#Data],MATCH(B$12,TableProduits[Code produit],0),MATCH($A15,TableProduits[#Headers],0)),\"-\")","v":"Lundi à vendredi midis"},null,"Nom jour",{"$f":"IFERROR(INDEX(TableProduits[#Data],MATCH(E$12,TableProduits[Code produit],0),MATCH($A15,TableProduits[#Headers],0)),\"-\")","v":"Lundi à vendredi midis"},null,"Nom jour",{"$f":"IFERROR(INDEX(TableProduits[#Data],MATCH(H$12,TableProduits[Code produit],0),MATCH($A15,TableProduits[#Headers],0)),\"-\")","v":"Lundi à vendredi midis"}]
["Code conditionnement",{"$f":"IFERROR(INDEX(TableProduits[#Data],MATCH(B$12,TableProduits[Code produit],0),MATCH($A16,TableProduits[#Headers],0)),\"-\")","v":"COCO23"},null,"Code conditionnement",{"$f":"IFERROR(INDEX(TableProduits[#Data],MATCH(E$12,TableProduits[Code produit],0),MATCH($A16,TableProduits[#Headers],0)),\"-\")","v":"COCO09"},null,"Code conditionnement",{"$f":"IFERROR(INDEX(TableProduits[#Data],MATCH(H$12,TableProduits[Code produit],0),MATCH($A16,TableProduits[#Headers],0)),\"-\")","v":"COCO16"}]
["Nom conditionnement",{"$f":"IFERROR(INDEX(TableProduits[#Data],MATCH(B$12,TableProduits[Code produit],0),MATCH($A17,TableProduits[#Headers],0)),\"-\")","v":"25 grammes pour 1 repas"},null,"Nom conditionnement",{"$f":"IFERROR(INDEX(TableProduits[#Data],MATCH(E$12,TableProduits[Code produit],0),MATCH($A17,TableProduits[#Headers],0)),\"-\")","v":"1 morceau de 500 grammes pour 5 repas"},null,"Nom conditionnement",{"$f":"IFERROR(INDEX(TableProduits[#Data],MATCH(H$12,TableProduits[Code produit],0),MATCH($A17,TableProduits[#Headers],0)),\"-\")","v":"1 sachet de 2 kilogrammes. 1 pomme pour 1 repas"}]
["Quantité légume",null,null,"Quantité viande",null,null,"Quantité dessert"]
[]
[null,null,null,"Code période viande weekend"]
[null,null,null,"Nom période viande weekend"]

{"sheet":"BD MMR","index":7,"n_rows":8,"n_cols":39,"rows_kept":8,"cut":false,"hidden":false,"merged":[]}
["Intitulé menu","Numéro création","Date menu","Code catégorie légume","Nom catégorie légume","Code produit légume","Nom produit légume","Code jour légume","Nom jour légume","Code conditionnement légume","Nom conditionnement légume","Quantité légume","Code catégorie viande","Nom catégorie viande","Code produit viande","Nom produit viande","Code jour viande","Nom jour viande","Code conditionnement viande","Nom conditionnement viande","Quantité viande","Code catégorie dessert","Nom catégorie dessert","Code produit dessert","Nom produit dessert","Code jour dessert","Nom jour dessert","Code conditionnement dessert","Nom conditionnement dessert","Quantité dessert","Code observation","Nom observation","Code période concernée","Nom période concernée","Date création menu","Code période viande weekend","Nom période viande weekend","Code à modifier","Nom à modifier"]
["MMR-001",1,"2020-01-01","CC04","LMR","LMR01","Asperges","CJ05","Lundi à vendredi midis","COCO01","1 bocal ou 1 boîte pour 1 repas",null,"CC13","VMR","VMR01","Rôti d'agneau","CJ05","Lundi à vendredi midis","COCO09","1 morceau de 500 grammes pour 5 repas",null,"CC01","DMR","DMR01","Pomme","CJ05","Lundi à vendredi midis","COCO16","1 sachet de 2 kilogrammes. 1 pomme pour 1 repas",null,null,"Jour de l'an",null,"janvier","2019-08-28"]
["MMR-002",2,"2020-01-02","CC04","LMR","LMR02","Avocat","CJ05","Lundi à vendredi midis","COCO28","Unité : 1 pour 1 repas",null,"CC13","VMR","VMR01","Rôti d'agneau","CJ05","Lundi à vendredi midis","COCO09","1 morceau de 500 grammes pour 5 repas",null,"CC01","DMR","DMR01","Pomme","CJ05","Lundi à vendredi midis","COCO16","1 sachet de 2 kilogrammes. 1 pomme pour 1 repas",null,null,"",null,"janvier","2019-08-28"]
["MMR-003",3,"2020-01-03","CC04","LMR","LMR03","Carottes","CJ05","Lundi à vendredi midis","COCO33","Unité : 2 pour 1 repas",null,"CC13","VMR","VMR01","Rôti d'agneau","CJ05","Lundi à vendredi midis","COCO09","1 morceau de 500 grammes pour 5 repas",null,"CC01","DMR","DMR01","Pomme","CJ05","Lundi à vendredi midis","COCO16","1 sachet de 2 kilogrammes. 1 pomme pour 1 repas",null,null,"",null,"janvier","2019-08-28"]
["MMR-004",4,"2020-01-06","CC04","LMR","LMR04","Céleri","CJ05","Lundi à vendredi midis","COCO26","Unité : 1 branche pour 1 repas",null,"CC13","VMR","VMR02","Rôti de bœuf","CJ05","Lundi à vendredi midis","COCO09","1 morceau de 500 grammes pour 5 repas",null,"CC01","DMR","DMR01","Pomme","CJ05","Lundi à vendredi midis","COCO16","1 sachet de 2 kilogrammes. 1 pomme pour 1 repas",null,null,"",null,"janvier","2019-08-28"]
["MMR-005",5,"2020-01-07","CC04","LMR","LMR05","Champignons","CJ05","Lundi à vendredi midis","COCO04","1 boîte pour 1 repas",null,"CC13","VMR","VMR02","Rôti de bœuf","CJ05","Lundi à vendredi midis","COCO09","1 morceau de 500 grammes pour 5 repas",null,"CC01","DMR","DMR01","Pomme","CJ05","Lundi à vendredi midis","COCO16","1 sachet de 2 kilogrammes. 1 pomme pour 1 repas",null,null,"",null,"janvier","2019-08-28"]
["MMR-006",6,"2020-01-08","CC04","LMR","LMR06","Concombre","CJ05","Lundi à vendredi midis","COCO28","Unité : 1 pour 1 repas",null,"CC13","VMR","VMR02","Rôti de bœuf","CJ05","Lundi à vendredi midis","COCO09","1 morceau de 500 grammes pour 5 repas",null,"CC01","DMR","DMR01","Pomme","CJ05","Lundi à vendredi midis","COCO16","1 sachet de 2 kilogrammes. 1 pomme pour 1 repas",null,null,"",null,"janvier","2019-08-28"]
["MMR-007",7,"2020-01-09","CC04","LMR","LMR07","Couscous","CJ05","Lundi à vendredi midis","COCO23","25 grammes pour 1 repas",null,"CC13","VMR","VMR02","Rôti de bœuf","CJ05","Lundi à vendredi midis","COCO09","1 morceau de 500 grammes pour 5 repas",null,"CC01","DMR","DMR01","Pomme","CJ05","Lundi à vendredi midis","COCO16","1 sachet de 2 kilogrammes. 1 pomme pour 1 repas",null,null,"",null,"janvier","2019-08-28"]

{"sheet":"Menus MMR","index":8,"n_rows":325,"n_cols":7,"rows_kept":325,"cut":false,"hidden":false,"merged":[[2,1,2,6],[29,1,29,6],[27,1,27,6],[54,1,54,6],[164,1,164,6],[135,1,135,6],[137,1,137,6],[162,1,162,6],[56,1,56,6],[81,1,81,6],[83,1,83,6],[108,1,108,6],[110,1,110,6],[189,1,189,6],[191,1,191,6],[216,1,216,6],[218,1,218,6],[243,1,243,6],[324,1,324,6],[245,1,245,6],[270,1,270,6],[272,1,272,6],[297,1,297,6],[299,1,299,6]]}
[2020]
[]
[1,{"$f":"\"Menus midi retraite du mois de \"&TEXT(A5,\"mmmm\")&\" \"&$A$1","v":"Menus midi retraite du mois de janvier 2020"}]
["Date du menu","Légume","Viande","Dessert","Observation","Nature du menu","Numéro menu"]
[{"$f":"IF(WEEKDAY(DATE($A$1,$A3,1),2)<=5,DATE($A$1,$A3,1),IF(WEEKDAY(DATE($A$1,$A3,1),2)=6,DATE($A$1,$A3,1)+2,IF(WEEKDAY(DATE($A$1,$A3,1),2)=7,DATE($A$1,$A3,1)+1,\"\")))","v":"2020-01-01"},"Asperges","Rôti d'agneau","Pomme","Jour de l'an",{"$f":"IF(A5<>\"\",\"Menus midi retraite \" &TEXT(A5,\"mmmm\"),\"\")","v":"Menus midi retraite janvier"},"MMR01"]
[{"$f":"A5+IF(WEEKDAY(A5,2)<5,1,3)","v":"2020-01-02"},"Avocat","Rôti d'agneau","Pomme","",{"$f":"IF(A6<>\"\",\"Menus midi retraite \" &TEXT(A6,\"mmmm\"),\"\")","v":"Menus midi retraite janvier"},"MMR02"]
[{"$f":"A6+IF(WEEKDAY(A6,2)<5,1,3)","v":"2020-01-03"},"Carottes","Rôti d'agneau","Pomme","","Menus midi retraite janvier","MMR03"]
["2020-01-06","Céleri","Rôti de bœuf","Pomme","","Menus midi retraite janvier","MMR04"]
["2020-01-07","Champignons","Rôti de bœuf","Pomme","","Menus midi retraite janvier","MMR05"]
["2020-01-08","Concombre","Rôti de bœuf","Pomme","","Menus midi retraite janvier","MMR06"]
["2020-01-09","Couscous","Rôti de bœuf","Pomme","","Menus midi retraite janvier","MMR07"]
["2020-01-10",null,null,null,null,"Menus midi retraite janvier","MMR08"]
["2020-01-13",null,null,null,null,"Menus midi retraite janvier","MMR09"]
["2020-01-14",null,null,null,null,"Menus midi retraite janvier","MMR10"]
["2020-01-15",null,null,null,null,"Menus midi retraite janvier","MMR11"]
["2020-01-16",null,null,null,null,"Menus midi retraite janvier","MMR12"]
["2020-01-17",null,null,null,null,"Menus midi retraite janvier","MMR13"]
["2020-01-20",null,null,null,null,"Menus midi retraite janvier","MMR14"]
["2020-01-21",null,null,null,null,"Menus midi retraite janvier","MMR15"]
["2020-01-22",null,null,null,null,"Menus midi retraite janvier","MMR16"]
["2020-01-23",null,null,null,null,"Menus midi retraite janvier","MMR17"]
["2020-01-24",null,null,null,null,"Menus midi retraite janvier","MMR18"]
["2020-01-27",null,null,null,null,"Menus midi retraite janvier","MMR19"]
["2020-01-28",null,null,null,null,"Menus midi retraite janvier","MMR20"]
[{"$f":"IFERROR(IF(MONTH(A24+IF(WEEKDAY(A24,2)<5,1,3))=MONTH(A23),A24+IF(WEEKDAY(A24,2)<5,1,3),\"\"),\"\")","v":"2020-01-29"},null,null,null,null,"Menus midi retraite janvier","MMR21"]
[{"$f":"IFERROR(IF(MONTH(A25+IF(WEEKDAY(A25,2)<5,1,3))=MONTH(A24),A25+IF(WEEKDAY(A25,2)<5,1,3),\"\"),\"\")","v":"2020-01-30"},null,null,null,null,"Menus midi retraite janvier","MMR22"]
["2020-01-31",null,null,null,null,"Menus midi retraite janvier","MMR23"]
[null,"Fait à Limeil-Brévannes, le "]
[]
[{"$f":"A3+1","v":2},{"$f":"\"Menus midi retraite du mois de \"&TEXT(A32,\"mmmm\")&\" \"&$A$1","v":"Menus midi retraite du mois de février 2020"}]
["Date du menu","Légume","Viande","Dessert","Observation","Nature du menu","Numéro du menu"]
[{"$f":"IF(WEEKDAY(DATE($A$1,$A30,1),2)<=5,DATE($A$1,$A30,1),IF(WEEKDAY(DATE($A$1,$A30,1),2)=6,DATE($A$1,$A30,1)+2,IF(WEEKDAY(DATE($A$1,$A30,1),2)=7,DATE($A$1,$A30,1)+1,\"\")))","v":"2020-02-03"},null,null,null,null,{"$f":"IF(A32<>\"\",\"Menus midi retraite \" &TEXT(A32,\"mmmm\"),\"\")","v":"Menus midi retraite février"}]
[{"$f":"A32+IF(WEEKDAY(A32,2)<5,1,3)","v":"2020-02-04"},null,null,null,null,{"$f":"IF(A33<>\"\",\"Menus midi retraite \" &TEXT(A33,\"mmmm\"),\"\")","v":"Menus midi retraite février"}]
[{"$f":"A33+IF(WEEKDAY(A33,2)<5,1,3)","v":"2020-02-05"},null,null,null,null,"Menus midi retraite février"]
["2020-02-06",null,null,null,null,"Menus midi retraite février"]
["2020-02-07",null,null,null,null,"Menus midi retraite février"]
["2020-02-10",null,null,null,null,"Menus midi retraite février"]
["2020-02-11",null,null,null,null,"Menus midi retraite février"]
["2020-02-12",null,null,null,null,"Menus midi retraite février"]
["2020-02-13",null,null,null,null,"Menus midi retraite février"]
["2020-02-14",null,null,null,null,"Menus midi retraite février"]
["2020-02-17",null,null,null,null,"Menus midi retraite février"]
["2020-02-18",null,null,null,null,"Menus midi retraite février"]
["2020-02-19",null,null,null,null,"Menus midi retraite février"]
["2020-02-20",null,null,null,null,"Menus midi retraite février"]
["2020-02-21",null,null,null,null,"Menus midi retraite février"]
["2020-02-24",null,null,null,null,"Menus midi retraite février"]
["2020-02-25",null,null,null,null,"Menus midi retraite février"]
["2020-02-26",null,null,null,null,"Menus midi retraite février"]
["2020-02-27",null,null,null,null,"Menus midi retraite février"]
["2020-02-28",null,null,null,null,"Menus midi retraite février"]
[{"$f":"IFERROR(IF(MONTH(A51+IF(WEEKDAY(A51,2)<5,1,3))=MONTH(A50),A51+IF(WEEKDAY(A51,2)<5,1,3),\"\"),\"\")","v":""},null,null,null,null,""]
[{"$f":"IFERROR(IF(MONTH(A52+IF(WEEKDAY(A52,2)<5,1,3))=MONTH(A51),A52+IF(WEEKDAY(A52,2)<5,1,3),\"\"),\"\")","v":""},null,null,null,null,""]
["",null,null,null,null,""]
[null,"Fait à Limeil-Brévannes, le "]
[]
[{"$f":"A30+1","v":3},{"$f":"\"Menus midi retraite du mois de \"&TEXT(A59,\"mmmm\")&\" \"&$A$1","v":"Menus midi retraite du mois de mars 2020"}]
["Date du menu","Légume","Viande","Dessert","Observation","Nature du menu","Numéro du menu"]
[{"$f":"IF(WEEKDAY(DATE($A$1,$A57,1),2)<=5,DATE($A$1,$A57,1),IF(WEEKDAY(DATE($A$1,$A57,1),2)=6,DATE($A$1,$A57,1)+2,IF(WEEKDAY(DATE($A$1,$A57,1),2)=7,DATE($A$1,$A57,1)+1,\"\")))","v":"2020-03-02"}]
[{"$f":"A59+IF(WEEKDAY(A59,2)<5,1,3)","v":"2020-03-03"}]
[{"$f":"A60+IF(WEEKDAY(A60,2)<5,1,3)","v":"2020-03-04"}]
["2020-03-05"]
["2020-03-06"]
["2020-03-09"]
["2020-03-10"]
["2020-03-11"]
["2020-03-12"]
["2020-03-13"]
["2020-03-16"]
["2020-03-17"]
["2020-03-18"]
["2020-03-19"]
["2020-03-20"]
["2020-03-23"]
["2020-03-24"]
["2020-03-25"]
["2020-03-26"]
["2020-03-27"]
[{"$f":"IFERROR(IF(MONTH(A78+IF(WEEKDAY(A78,2)<5,1,3))=MONTH(A77),A78+IF(WEEKDAY(A78,2)<5,1,3),\"\"),\"\")","v":"2020-03-30"}]
[{"$f":"IFERROR(IF(MONTH(A79+IF(WEEKDAY(A79,2)<5,1,3))=MONTH(A78),A79+IF(WEEKDAY(A79,2)<5,1,3),\"\"),\"\")","v":"2020-03-31"}]
[""]
[null,"Fait à Limeil-Brévannes, le "]
[]
[{"$f":"A57+1","v":4},{"$f":"\"Menus midi retraite du mois de \"&TEXT(A86,\"mmmm\")&\" \"&$A$1","v":"Menus midi retraite du mois de avril 2020"}]
["Date du menu","Légume","Viande","Dessert","Observation","Nature du menu","Numéro du menu"]
[{"$f":"IF(WEEKDAY(DATE($A$1,$A84,1),2)<=5,DATE($A$1,$A84,1),IF(WEEKDAY(DATE($A$1,$A84,1),2)=6,DATE($A$1,$A84,1)+2,IF(WEEKDAY(DATE($A$1,$A84,1),2)=7,DATE($A$1,$A84,1)+1,\"\")))","v":"2020-04-01"}]
[{"$f":"A86+IF(WEEKDAY(A86,2)<5,1,3)","v":"2020-04-02"}]
[{"$f":"A87+IF(WEEKDAY(A87,2)<5,1,3)","v":"2020-04-03"}]
["2020-04-06"]
["2020-04-07"]
["2020-04-08"]
["2020-04-09"]
["2020-04-10"]
["2020-04-13"]
["2020-04-14"]
["2020-04-15"]
["2020-04-16"]
["2020-04-17"]
["2020-04-20"]
["2020-04-21"]
["2020-04-22"]
["2020-04-23"]
["2020-04-24"]
["2020-04-27"]
["2020-04-28"]
[{"$f":"IFERROR(IF(MONTH(A105+IF(WEEKDAY(A105,2)<5,1,3))=MONTH(A104),A105+IF(WEEKDAY(A105,2)<5,1,3),\"\"),\"\")","v":"2020-04-29"}]
[{"$f":"IFERROR(IF(MONTH(A106+IF(WEEKDAY(A106,2)<5,1,3))=MONTH(A105),A106+IF(WEEKDAY(A106,2)<5,1,3),\"\"),\"\")","v":"2020-04-30"}]
[""]
[null,"Fait à Limeil-Brévannes, le "]
[]
[{"$f":"A84+1","v":5},{"$f":"\"Menus midi retraite du mois de \"&TEXT(A113,\"mmmm\")&\" \"&$A$1","v":"Menus midi retraite du mois de mai 2020"}]
["Date du menu","Légume","Viande","Dessert","Observation","Nature du menu","Numéro du menu"]
[{"$f":"IF(WEEKDAY(DATE($A$1,$A111,1),2)<=5,DATE($A$1,$A111,1),IF(WEEKDAY(DATE($A$1,$A111,1),2)=6,DATE($A$1,$A111,1)+2,IF(WEEKDAY(DATE($A$1,$A111,1),2)=7,DATE($A$1,$A111,1)+1,\"\")))","v":"2020-05-01"}]
[{"$f":"A113+IF(WEEKDAY(A113,2)<5,1,3)","v":"2020-05-04"}]
[{"$f":"A114+IF(WEEKDAY(A114,2)<5,1,3)","v":"2020-05-05"}]
["2020-05-06"]
["2020-05-07"]
["2020-05-08"]
["2020-05-11"]
["2020-05-12"]
["2020-05-13"]
["2020-05-14"]
["2020-05-15"]
["2020-05-18"]
["2020-05-19"]
["2020-05-20"]
["2020-05-21"]
["2020-05-22"]
["2020-05-25"]
["2020-05-26"]
["2020-05-27"]
["2020-05-28"]
[{"$f":"IFERROR(IF(MONTH(A132+IF(WEEKDAY(A132,2)<5,1,3))=MONTH(A131),A132+IF(WEEKDAY(A132,2)<5,1,3),\"\"),\"\")","v":"2020-05-29"}]
[{"$f":"IFERROR(IF(MONTH(A133+IF(WEEKDAY(A133,2)<5,1,3))=MONTH(A132),A133+IF(WEEKDAY(A133,2)<5,1,3),\"\"),\"\")","v":""}]
[""]
[null,"Fait à Limeil-Brévannes, le "]
[]
[{"$f":"A111+1","v":6},{"$f":"\"Menus midi retraite du mois de \"&TEXT(A140,\"mmmm\")&\" \"&$A$1","v":"Menus midi retraite du mois de juin 2020"}]
["Date du menu","Légume","Viande","Dessert","Observation","Nature du menu","Numéro du menu"]
[{"$f":"IF(WEEKDAY(DATE($A$1,$A138,1),2)<=5,DATE($A$1,$A138,1),IF(WEEKDAY(DATE($A$1,$A138,1),2)=6,DATE($A$1,$A138,1)+2,IF(WEEKDAY(DATE($A$1,$A138,1),2)=7,DATE($A$1,$A138,1)+1,\"\")))","v":"2020-06-01"}]
[{"$f":"A140+IF(WEEKDAY(A140,2)<5,1,3)","v":"2020-06-02"}]
[{"$f":"A141+IF(WEEKDAY(A141,2)<5,1,3)","v":"2020-06-03"}]
["2020-06-04"]
["2020-06-05"]
["2020-06-08"]
["2020-06-09"]
["2020-06-10"]
["2020-06-11"]
["2020-06-12"]
["2020-06-15"]
["2020-06-16"]
["2020-06-17"]
["2020-06-18"]
["2020-06-19"]
["2020-06-22"]
["2020-06-23"]
["2020-06-24"]
["2020-06-25"]
["2020-06-26"]
[{"$f":"IFERROR(IF(MONTH(A159+IF(WEEKDAY(A159,2)<5,1,3))=MONTH(A158),A159+IF(WEEKDAY(A159,2)<5,1,3),\"\"),\"\")","v":"2020-06-29"}]
[{"$f":"IFERROR(IF(MONTH(A160+IF(WEEKDAY(A160,2)<5,1,3))=MONTH(A159),A160+IF(WEEKDAY(A160,2)<5,1,3),\"\"),\"\")","v":"2020-06-30"}]
[""]
[null,"Fait à Limeil-Brévannes, le "]
[]
[{"$f":"A138+1","v":7},{"$f":"\"Menus midi retraite du mois de \"&TEXT(A167,\"mmmm\")&\" \"&$A$1","v":"Menus midi retraite du mois de juillet 2020"}]
["Date du menu","Légume","Viande","Dessert","Observation","Nature du menu","Numéro du menu"]
[{"$f":"IF(WEEKDAY(DATE($A$1,$A165,1),2)<=5,DATE($A$1,$A165,1),IF(WEEKDAY(DATE($A$1,$A165,1),2)=6,DATE($A$1,$A165,1)+2,IF(WEEKDAY(DATE($A$1,$A165,1),2)=7,DATE($A$1,$A165,1)+1,\"\")))","v":"2020-07-01"}]
[{"$f":"A167+IF(WEEKDAY(A167,2)<5,1,3)","v":"2020-07-02"}]
[{"$f":"A168+IF(WEEKDAY(A168,2)<5,1,3)","v":"2020-07-03"}]
["2020-07-06"]
["2020-07-07"]
["2020-07-08"]
["2020-07-09"]
["2020-07-10"]
["2020-07-13"]
["2020-07-14"]
["2020-07-15"]
["2020-07-16"]
["2020-07-17"]
["2020-07-20"]
["2020-07-21"]
["2020-07-22"]
["2020-07-23"]
["2020-07-24"]
["2020-07-27"]
["2020-07-28"]
[{"$f":"IFERROR(IF(MONTH(A186+IF(WEEKDAY(A186,2)<5,1,3))=MONTH(A185),A186+IF(WEEKDAY(A186,2)<5,1,3),\"\"),\"\")","v":"2020-07-29"}]
[{"$f":"IFERROR(IF(MONTH(A187+IF(WEEKDAY(A187,2)<5,1,3))=MONTH(A186),A187+IF(WEEKDAY(A187,2)<5,1,3),\"\"),\"\")","v":"2020-07-30"}]
["2020-07-31"]
[null,"Fait à Limeil-Brévannes, le "]
[]
[{"$f":"A165+1","v":8},{"$f":"\"Menus midi retraite du mois de \"&TEXT(A194,\"mmmm\")&\" \"&$A$1","v":"Menus midi retraite du mois de août 2020"}]
["Date du menu","Légume","Viande","Dessert","Observation","Nature du menu","Numéro du menu"]
[{"$f":"IF(WEEKDAY(DATE($A$1,$A192,1),2)<=5,DATE($A$1,$A192,1),IF(WEEKDAY(DATE($A$1,$A192,1),2)=6,DATE($A$1,$A192,1)+2,IF(WEEKDAY(DATE($A$1,$A192,1),2)=7,DATE($A$1,$A192,1)+1,\"\")))","v":"2020-08-03"}]
[{"$f":"A194+IF(WEEKDAY(A194,2)<5,1,3)","v":"2020-08-04"}]
[{"$f":"A195+IF(WEEKDAY(A195,2)<5,1,3)","v":"2020-08-05"}]
["2020-08-06"]
["2020-08-07"]
["2020-08-10"]
["2020-08-11"]
["2020-08-12"]
["2020-08-13"]
["2020-08-14"]
["2020-08-17"]
["2020-08-18"]
["2020-08-19"]
["2020-08-20"]
["2020-08-21"]
["2020-08-24"]
["2020-08-25"]
["2020-08-26"]
["2020-08-27"]
["2020-08-28"]
[{"$f":"IFERROR(IF(MONTH(A213+IF(WEEKDAY(A213,2)<5,1,3))=MONTH(A212),A213+IF(WEEKDAY(A213,2)<5,1,3),\"\"),\"\")","v":"2020-08-31"}]
[{"$f":"IFERROR(IF(MONTH(A214+IF(WEEKDAY(A214,2)<5,1,3))=MONTH(A213),A214+IF(WEEKDAY(A214,2)<5,1,3),\"\"),\"\")","v":""}]
[""]
[null,"Fait à Limeil-Brévannes, le "]
[]
[{"$f":"A192+1","v":9},{"$f":"\"Menus midi retraite du mois de \"&TEXT(A221,\"mmmm\")&\" \"&$A$1","v":"Menus midi retraite du mois de septembre 2020"}]
["Date du menu","Légume","Viande","Dessert","Observation","Nature du menu","Numéro du menu"]
[{"$f":"IF(WEEKDAY(DATE($A$1,$A219,1),2)<=5,DATE($A$1,$A219,1),IF(WEEKDAY(DATE($A$1,$A219,1),2)=6,DATE($A$1,$A219,1)+2,IF(WEEKDAY(DATE($A$1,$A219,1),2)=7,DATE($A$1,$A219,1)+1,\"\")))","v":"2020-09-01"}]
[{"$f":"A221+IF(WEEKDAY(A221,2)<5,1,3)","v":"2020-09-02"}]
[{"$f":"A222+IF(WEEKDAY(A222,2)<5,1,3)","v":"2020-09-03"}]
["2020-09-04"]
["2020-09-07"]
["2020-09-08"]
["2020-09-09"]
["2020-09-10"]
["2020-09-11"]
["2020-09-14"]
["2020-09-15"]
["2020-09-16"]
["2020-09-17"]
["2020-09-18"]
["2020-09-21"]
["2020-09-22"]
["2020-09-23"]
["2020-09-24"]
["2020-09-25"]
["2020-09-28"]
[{"$f":"IFERROR(IF(MONTH(A240+IF(WEEKDAY(A240,2)<5,1,3))=MONTH(A239),A240+IF(WEEKDAY(A240,2)<5,1,3),\"\"),\"\")","v":"2020-09-29"}]
[{"$f":"IFERROR(IF(MONTH(A241+IF(WEEKDAY(A241,2)<5,1,3))=MONTH(A240),A241+IF(WEEKDAY(A241,2)<5,1,3),\"\"),\"\")","v":"2020-09-30"}]
[""]
[null,"Fait à Limeil-Brévannes, le "]
[]
[{"$f":"A219+1","v":10},{"$f":"\"Menus midi retraite du mois de \"&TEXT(A248,\"mmmm\")&\" \"&$A$1","v":"Menus midi retraite du mois de octobre 2020"}]
["Date du menu","Légume","Viande","Dessert","Observation","Nature du menu","Numéro du menu"]
[{"$f":"IF(WEEKDAY(DATE($A$1,$A246,1),2)<=5,DATE($A$1,$A246,1),IF(WEEKDAY(DATE($A$1,$A246,1),2)=6,DATE($A$1,$A246,1)+2,IF(WEEKDAY(DATE($A$1,$A246,1),2)=7,DATE($A$1,$A246,1)+1,\"\")))","v":"2020-10-01"}]
[{"$f":"A248+IF(WEEKDAY(A248,2)<5,1,3)","v":"2020-10-02"}]
[{"$f":"A249+IF(WEEKDAY(A249,2)<5,1,3)","v":"2020-10-05"}]
["2020-10-06"]
["2020-10-07"]
["2020-10-08"]
["2020-10-09"]
["2020-10-12"]
["2020-10-13"]
["2020-10-14"]
["2020-10-15"]
["2020-10-16"]
["2020-10-19"]
["2020-10-20"]
["2020-10-21"]
["2020-10-22"]
["2020-10-23"]
["2020-10-26"]
["2020-10-27"]
["2020-10-28"]
[{"$f":"IFERROR(IF(MONTH(A267+IF(WEEKDAY(A267,2)<5,1,3))=MONTH(A266),A267+IF(WEEKDAY(A267,2)<5,1,3),\"\"),\"\")","v":"2020-10-29"}]
[{"$f":"IFERROR(IF(MONTH(A268+IF(WEEKDAY(A268,2)<5,1,3))=MONTH(A267),A268+IF(WEEKDAY(A268,2)<5,1,3),\"\"),\"\")","v":"2020-10-30"}]
[""]
[null,"Fait à Limeil-Brévannes, le "]
[]
[{"$f":"A246+1","v":11},{"$f":"\"Menus midi retraite du mois de \"&TEXT(A275,\"mmmm\")&\" \"&$A$1","v":"Menus midi retraite du mois de novembre 2020"}]
["Date du menu","Légume","Viande","Dessert","Observation","Nature du menu","Numéro du menu"]
[{"$f":"IF(WEEKDAY(DATE($A$1,$A273,1),2)<=5,DATE($A$1,$A273,1),IF(WEEKDAY(DATE($A$1,$A273,1),2)=6,DATE($A$1,$A273,1)+2,IF(WEEKDAY(DATE($A$1,$A273,1),2)=7,DATE($A$1,$A273,1)+1,\"\")))","v":"2020-11-02"}]
[{"$f":"A275+IF(WEEKDAY(A275,2)<5,1,3)","v":"2020-11-03"}]
[{"$f":"A276+IF(WEEKDAY(A276,2)<5,1,3)","v":"2020-11-04"}]
["2020-11-05"]
["2020-11-06"]
["2020-11-09"]
["2020-11-10"]
["2020-11-11"]
["2020-11-12"]
["2020-11-13"]
["2020-11-16"]
["2020-11-17"]
["2020-11-18"]
["2020-11-19"]
["2020-11-20"]
["2020-11-23"]
["2020-11-24"]
["2020-11-25"]
["2020-11-26"]
["2020-11-27"]
[{"$f":"IFERROR(IF(MONTH(A294+IF(WEEKDAY(A294,2)<5,1,3))=MONTH(A293),A294+IF(WEEKDAY(A294,2)<5,1,3),\"\"),\"\")","v":"2020-11-30"}]
[{"$f":"IFERROR(IF(MONTH(A295+IF(WEEKDAY(A295,2)<5,1,3))=MONTH(A294),A295+IF(WEEKDAY(A295,2)<5,1,3),\"\"),\"\")","v":""}]
[""]
[null,"Fait à Limeil-Brévannes, le "]
[]
[{"$f":"A273+1","v":12},{"$f":"\"Menus midi retraite du mois de \"&TEXT(A302,\"mmmm\")&\" \"&$A$1","v":"Menus midi retraite du mois de décembre 2020"}]
["Date du menu","Légume","Viande","Dessert","Observation","Nature du menu","Numéro du menu"]
[{"$f":"IF(WEEKDAY(DATE($A$1,$A300,1),2)<=5,DATE($A$1,$A300,1),IF(WEEKDAY(DATE($A$1,$A300,1),2)=6,DATE($A$1,$A300,1)+2,IF(WEEKDAY(DATE($A$1,$A300,1),2)=7,DATE($A$1,$A300,1)+1,\"\")))","v":"2020-12-01"}]
[{"$f":"A302+IF(WEEKDAY(A302,2)<5,1,3)","v":"2020-12-02"}]
[{"$f":"A303+IF(WEEKDAY(A303,2)<5,1,3)","v":"2020-12-03"}]
["2020-12-04"]
["2020-12-07"]
["2020-12-08"]
["2020-12-09"]
["2020-12-10"]
["2020-12-11"]
["2020-12-14"]
["2020-12-15"]
["2020-12-16"]
["2020-12-17"]
["2020-12-18"]
["2020-12-21"]
["2020-12-22"]
["2020-12-23"]
["2020-12-24"]
["2020-12-25"]
["2020-12-28"]
[{"$f":"IFERROR(IF(MONTH(A321+IF(WEEKDAY(A321,2)<5,1,3))=MONTH(A320),A321+IF(WEEKDAY(A321,2)<5,1,3),\"\"),\"\")","v":"2020-12-29"}]
[{"$f":"IFERROR(IF(MONTH(A322+IF(WEEKDAY(A322,2)<5,1,3))=MONTH(A321),A322+IF(WEEKDAY(A322,2)<5,1,3),\"\"),\"\")","v":"2020-12-30"}]
["2020-12-31"]
[null,"Fait à Limeil-Brévannes, le "]

{"sheet":"Jours Fériés","index":9,"n_rows":17,"n_cols":2,"rows_kept":17,"cut":false,"hidden":true,"merged":[]}
[]
["Jours fériés","2020"]
["Jour de l'an",{"$f":"DATE(B2,1,1)","v":"2020-01-01"}]
["Lundi de Pâques",{"$f":"DATE(YEAR(B3),3,29.56+0.979*MOD(204-11*MOD(YEAR(B3),19),30)-WEEKDAY(DATE(YEAR(B3),3,28.56+0.979*MOD(204-11*MOD(YEAR(B3),19),30))))+1","v":"2020-04-13"}]
["Fête du travail",{"$f":"DATE(B2,5,1)","v":"2020-05-01"}]
["Victoire 1945",{"$f":"DATE(B2,5,8)","v":"2020-05-08"}]
["Jeudi de l'ascension",{"$f":"B4+38","v":"2020-05-21"}]
["Lundi de Pentecôte",{"$f":"B4+49","v":"2020-06-01"}]
["Fête nationale",{"$f":"DATE(B2,7,14)","v":"2020-07-14"}]
["Assomption",{"$f":"DATE(B2,8,15)","v":"2020-08-15"}]
["Toussaint",{"$f":"DATE(B2,11,1)","v":"2020-11-01"}]
["Armistice 1918",{"$f":"DATE(B2,11,11)","v":"2020-11-11"}]
["Noël",{"$f":"DATE(B2,12,25)","v":"2020-12-25"}]
[]
[]
["Samedi"]
["Dimanche"]